[Event "Denmark Team Championship 2022"]
[Site "Denmark"]
[Date "2022.10.29"]
[Round "1.4"]
[White "Rostgaard, Tobias Valentin"]
[Black "Sorensen, Jan"]
[Result "1/2-1/2"]
[ECO "C04"]
[WhiteElo "2323"]
[BlackElo "2370"]
[Annotator "ChessBase"]
[PlyCount "194"]
[EventDate "2022.10.29"]
[EventType "team-tourn"]
[EventCountry "DEN"]
[SourceTitle "playchess.com"]
[Source "ChessBase"]
[SourceQuality "1"]
[TimeControl "40/5400+30:1800+30"]

1. e4 {[%emt 0:00:09]} e6 {[%emt 0:00:05]} 2. d4 {[%emt 0:00:17]} d5 {[%emt 0:00:05]} 3. Nd2 {[%emt 0:00:10]} Nc6 {[%emt 0:00:20]} 4. Ngf3 {[%emt 0:00:21]} Nf6 {[%emt 0:00:06]} 5. e5 {[%emt 0:00:07]} Nd7 {[%emt 0:00:04]} 6. c3 {[%emt 0:00:07]} f6 {[%emt 0:00:19]} 7. Bb5 {[%emt 0:00:10]} fxe5 {[%emt 0:07:25]} 8. dxe5 {[%emt 0:00:12]} a6 {[%emt 0:12:26]} 9. Bxc6 {[%emt 0:02:34]} bxc6 {[%emt 0:00:04]} 10. Nb3 {[%emt 0:05:10]} a5 {[%emt 0:17:15]} 11. Bg5 {[%emt 0:01:28]} Be7 {[%emt 0:00:11]} 12. Nbd4 {[%emt 0:00:35]} Nb8 {[%emt 0:02:12]} 13. h4 {[%emt 0:04:59]} a4 {[%emt 0:12:29]} 14. Bxe7 {[%emt 0:02:01]} Qxe7 {[%emt 0:00:08]} 15. Ng5 {[%emt 0:00:14]} c5 {[%emt 0:04:00]} 16. Ne2 {[%emt 0:04:52]} h6 {[%emt 0:05:24]} 17. Nf4 {[%emt 0:03:54]} O-O {[%emt 0:12:30]} 18. Ng6 {[%emt 0:01:45]} Qe8 {[%emt 0:01:03]} 19. Nxf8 {[%emt 0:00:55]} Qxf8 {[%emt 0:00:41]} 20. Nf3 {[%emt 0:17:24]} a3 {[%emt 0:01:58]} 21. bxa3 {[%emt 0:06:05]} Ba6 {[%emt 0:01:39]} 22. Qa4 {[%emt 0:02:14]} Qc8 {[%emt 0:07:12]} 23. Rd1 {[%emt 0:12:13]} c6 {[%emt 0:06:22]} 24. Qg4 {[%emt 0:07:38]} Qe8 {[%emt 0:00:34]} 25. Rh3 {[%emt 0:01:28]} Nd7 {[%emt 0:01:53]} 26. Rg3 {[%emt 0:03:52]} Qf7 {[%emt 0:00:15]} 27. Qg6 {[%emt 0:01:40]} Qxg6 {[%emt 0:00:33]} 28. Rxg6 {[%emt 0:00:06]} Kf7 {[%emt 0:03:33]} 29. Rg4 {[%emt 0:00:52]} Bb5 {[%emt 0:01:22]} 30. c4 {[%emt 0:01:14]} Ba4 {[%emt 0:00:56]} 31. Rb1 {[%emt 0:00:28]} Ra7 {[%emt 0:00:12]} 32. Rb2 {[%emt 0:00:49]} dxc4 {[%emt 0:00:31]} 33. Rxc4 {[%emt 0:01:30]} Bb5 {[%emt 0:00:03]} 34. Rf4+ {[%emt 0:02:20]} Ke7 {[%emt 0:00:28]} 35. Rb3 {[%emt 0:05:08]} c4 {[%emt 0:00:52]} 36. Re3 {[%emt 0:00:33]} Nc5 {[%emt 0:00:19]} 37. Rg4 {[%emt 0:00:45]} Kf7 {[%emt 0:02:25]} 38. Rc3 {[%emt 0:02:37]} Na4 {[%emt 0:00:43]} 39. Rcxc4 {[%emt 0:01:49]} Bxc4 {[%emt 0:00:43]} 40. Rxc4 {[%emt 0:00:09]} c5 {[%emt 0:00:19]} 41. Kd2 {[%emt 0:31:46]} Ra5 {[%emt 0:03:28]} 42. Rf4+ {[%emt 0:00:00]} Ke8 {[%emt 0:02:44]} 43. Rg4 {[%emt 0:00:00]} Kf7 {[%emt 0:02:10]} 44. Ne1 {[%emt 0:00:00]} Nb6 {[%emt 0:05:38]} 45. Nc2 {[%emt 0:00:00]} Rb5 {[%emt 0:00:32]} 46. Kc1 {[%emt 0:00:00]} Ra5 {[%emt 0:06:11]} 47. h5 {[%emt 0:00:00]} Nd5 {[%emt 0:07:04]} 48. Rc4 {[%emt 0:00:00]} g6 {[%emt 0:02:10]} 49. hxg6+ {[%emt 0:00:00]} Kxg6 {[%emt 0:00:05]} 50. Rh4 {[%emt 0:00:00]} Nc3 {[%emt 0:01:25]} 51. Rh3 {[%emt 0:00:00]} Nd5 {[%emt 0:01:22]} 52. Rf3 {[%emt 0:00:00]} Ra4 {[%emt 0:00:35]} 53. Ne3 {[%emt 0:02:32]} Nf4 {[%emt 0:01:13]} 54. Kd2 {[%emt 0:01:06]} Kg7 {[%emt 0:00:48]} 55. g3 {[%emt 0:02:21]} Ng6 {[%emt 0:00:56]} 56. Rf6 {[%emt 0:01:30]} Nxe5 {[%emt 0:00:55]} 57. Rxe6 {[%emt 0:00:06]} Nf3+ {[%emt 0:00:06]} 58. Kc3 {[%emt 0:00:51]} Rxa3+ {[%emt 0:00:25]} 59. Kb2 {[%emt 0:00:07]} Rd3 {[%emt 0:00:09]} 60. Nc4 {[%emt 0:02:43]} Rd4 {[%emt 0:00:48]} 61. Kc3 {[%emt 0:00:26]} Ng5 {[%emt 0:00:05]} 62. Re2 {[%emt 0:00:46]} Ne4+ {[%emt 0:00:27]} 63. Kb3 {[%emt 0:00:48]} Kf6 {[%emt 0:01:08]} 64. a4 {[%emt 0:00:22]} Rd3+ {[%emt 0:00:24]} 65. Kb2 {[%emt 0:00:45]} Nc3 {[%emt 0:00:09]} 66. Kc2 {[%emt 0:01:27]} Rf3 {[%emt 0:01:31]} 67. Re8 {[%emt 0:00:13]} Kf7 {[%emt 0:00:56]} 68. Nd6+ {[%emt 0:00:07]} Kg7 {[%emt 0:00:07]} 69. a5 {[%emt 0:02:09]} Nd5 {[%emt 0:00:05]} 70. Ne4 {[%emt 0:00:19]} Ra3 {[%emt 0:00:11]} 71. Ra8 {[%emt 0:00:16]} c4 {[%emt 0:01:00]} 72. Ra7+ {[%emt 0:01:11]} Kg6 {[%emt 0:00:10]} 73. f4 {[%emt 0:00:51]} Nb4+ {[%emt 0:00:51]} 74. Kb1 {[%emt 0:00:50]} Rb3+ {[%emt 0:00:32]} 75. Kc1 {[%emt 0:00:14]} Re3 {[%emt 0:00:22]} 76. Re7 {[%emt 0:00:42]} Ra3 {[%emt 0:00:36]} 77. Re6+ {[%emt 0:01:24]} Kg7 {[%emt 0:01:09]} 78. Kb2 {[%emt 0:01:08]} Rb3+ {[%emt 0:00:11]} 79. Kc1 {[%emt 0:00:11]} Ra3 {[%emt 0:00:03]} 80. Re7+ {[%emt 0:00:31]} Kg6 {[%emt 0:00:09]} 81. Rc7 {[%emt 0:01:02]} Rxa5 {[%emt 0:01:03]} 82. Rxc4 {[%emt 0:00:13]} Nd5 {[%emt 0:00:24]} 83. Kd2 {[%emt 0:00:57]} Ra3 {[%emt 0:00:30]} 84. Rd4 {[%emt 0:00:36]} Ne3 {[%emt 0:00:52]} 85. Ke2 {[%emt 0:00:52]} Nf5 {[%emt 0:00:50]} 86. Rd3 {[%emt 0:00:25]} Ra4 {[%emt 0:00:26]} 87. Kf3 {[%emt 0:00:25]} Nd4+ {[%emt 0:00:09]} 88. Kg4 {[%emt 0:00:46]} h5+ {[%emt 0:00:32]} 89. Kh3 {[%emt 0:00:09]} Ne6 {[%emt 0:01:06]} 90. Re3 {[%emt 0:00:29]} Rd4 {[%emt 0:00:11]} 91. Kg2 {[%emt 0:00:26]} h4 {[%emt 0:00:31]} 92. Kf3 {[%emt 0:01:00]} hxg3 {[%emt 0:00:14]} 93. Kxg3 {[%emt 0:00:19]} Kf5 {[%emt 0:00:25]} 94. Ng5 {[%emt 0:00:37]} Nxf4 {[%emt 0:00:32]} 95. Nf3 {[%emt 0:00:11]} Nh5+ {[%emt 0:00:14]} 96. Kf2 {[%emt 0:00:09]} Re4 {[%emt 0:00:18]} 97. Rxe4 {[%emt 0:00:26]} Kxe4 1/2-1/2

[Event "Denmark Team Championship 2022"]
[Site "Denmark"]
[Date "2022.10.29"]
[Round "1.4"]
[White "Sylvan, Jacob"]
[Black "Chatalbashev, Boris"]
[Result "1/2-1/2"]
[ECO "B09"]
[WhiteElo "2310"]
[BlackElo "2488"]
[Annotator "ChessBase"]
[PlyCount "53"]
[EventDate "2022.10.29"]
[EventType "team-tourn"]
[EventCountry "DEN"]
[SourceTitle "playchess.com"]
[Source "ChessBase"]
[SourceQuality "1"]
[TimeControl "40/5400+30:1800+30"]

1. e4 {[%emt 0:00:04]} g6 {[%emt 0:00:05]} 2. d4 {[%emt 0:00:10]} Bg7 {[%emt 0:00:05]} 3. Nc3 {[%emt 0:00:03]} d6 {[%emt 0:00:15]} 4. f4 {[%emt 0:00:14]} Nf6 {[%emt 0:00:08]} 5. Nf3 {[%emt 0:00:18]} O-O {[%emt 0:00:08]} 6. Bd3 {[%emt 0:00:12]} Nc6 {[%emt 0:02:25]} 7. O-O {[%emt 0:01:48]} e5 {[%emt 0:00:12]} 8. fxe5 {[%emt 0:01:40]} dxe5 {[%emt 0:00:07]} 9. d5 {[%emt 0:00:09]} Ne7 {[%emt 0:00:19]} 10. Qe1 {[%emt 0:02:58]} Ne8 {[%emt 0:01:26]} 11. Qh4 {[%emt 0:10:41]} f6 {[%emt 0:04:50]} 12. Ne2 {[%emt 0:20:38]} Nd6 {[%emt 0:05:34]} 13. c4 {[%emt 0:01:08]} b6 {[%emt 0:02:33]} 14. b4 {[%emt 0:04:10]} Ba6 {[%emt 0:11:44]} 15. b5 {[%emt 0:01:22]} Bc8 {[%emt 0:00:05]} 16. a4 {[%emt 0:00:57]} Bd7 {[%emt 0:05:26]} 17. a5 {[%emt 0:10:10]} Nb7 {[%emt 0:02:07]} 18. axb6 {[%emt 0:03:17]} axb6 {[%emt 0:00:18]} 19. Be3 {[%emt 0:02:29]} Rxa1 {[%emt 0:08:54]} 20. Rxa1 {[%emt 0:00:14]} Nc8 {[%emt 0:00:19]} 21. Nc3 {[%emt 0:11:32]} Qe7 {[%emt 0:05:46]} 22. Bc1 {[%emt 0:05:04]} Qb4 {[%emt 0:12:58]} 23. Qe1 {[%emt 0:02:42]} Ncd6 {[%emt 0:03:12]} 24. Ra4 {[%emt 0:05:37]} Qb3 {[%emt 0:00:23]} 25. Ra3 {[%emt 0:00:22]} Qb4 {[%emt 0:00:08]} 26. Ra4 {[%emt 0:00:17]} Qb3 {[%emt 0:00:29]} 27. Ra3 {[%emt 0:00:13]} 1/2-1/2

[Event "Denmark Team Championship 2022"]
[Site "Denmark"]
[Date "2022.10.29"]
[Round "1.4"]
[White "Christensen, Jan Schleicher"]
[Black "Vasli, Aref"]
[Result "0-1"]
[ECO "A46"]
[WhiteElo "2167"]
[BlackElo "2374"]
[Annotator "ChessBase"]
[PlyCount "66"]
[EventDate "2022.10.29"]
[EventType "team-tourn"]
[EventCountry "DEN"]
[SourceTitle "playchess.com"]
[Source "ChessBase"]
[SourceQuality "1"]
[TimeControl "40/5400+30:1800+30"]

1. d4 {[%emt 0:00:04]} Nf6 {[%emt 0:00:10]} 2. Nf3 {[%emt 0:00:16]} e6 {[%emt 0:00:09]} 3. g3 {[%emt 0:00:59]} c5 {[%emt 0:00:49]} 4. Bg2 {[%emt 0:00:23]} Nc6 {[%emt 0:00:20]} 5. O-O {[%emt 0:00:31]} d5 {[%emt 0:06:27]} 6. c4 {[%emt 0:01:53]} dxc4 {[%emt 0:00:19]} 7. Ne5 {[%emt 0:02:14]} Bd7 {[%emt 0:09:34]} 8. Nxc4 {[%emt 0:02:16]} cxd4 {[%emt 0:06:39]} 9. Qb3 {[%emt 0:06:31]} Be7 {[%emt 0:08:15]} 10. Bf4 {[%emt 0:07:05]} Bc8 {[%emt 0:21:28]} 11. Rd1 {[%emt 0:04:07]} Nd5 {[%emt 0:02:52]} 12. Nbd2 {[%emt 0:14:46]} g5 {[%emt 0:03:20]} 13. e4 {[%emt 0:10:30]} Nb6 {[%emt 0:01:36]} 14. Be5 {[%emt 0:06:19]} f6 {[%emt 0:00:17]} 15. Bxf6 {[%emt 0:09:27]} Bxf6 {[%emt 0:00:12]} 16. e5 {[%emt 0:00:11]} Nxe5 {[%emt 0:03:51]} 17. Nxe5 {[%emt 0:03:01]} Bxe5 {[%emt 0:00:03]} 18. Qb5+ {[%emt 0:01:17]} Nd7 {[%emt 0:00:03]} 19. Nf3 {[%emt 0:03:32]} Bf6 {[%emt 0:03:23]} 20. Nxd4 {[%emt 0:01:50]} Bxd4 {[%emt 0:00:02]} 21. Rxd4 {[%emt 0:00:07]} Qb6 22. Qd3 {[%emt 0:03:13]} O-O {[%emt 0:04:13]} 23. Qd2 {[%emt 0:02:45]} Qc5 {[%emt 0:08:46]} 24. b4 {[%emt 0:03:12]} Qf5 {[%emt 0:00:18]} 25. Re1 {[%emt 0:05:18]} Kh8 {[%emt 0:07:51]} 26. f4 {[%emt 0:01:48]} g4 {[%emt 0:02:45]} 27. Rd6 {[%emt 0:01:49]} Nb6 {[%emt 0:00:49]} 28. Re5 {[%emt 0:01:43]} Qf6 {[%emt 0:00:03]} 29. Bf1 {[%emt 0:03:03]} Bd7 {[%emt 0:00:21]} 30. Rxd7 {[%emt 0:01:01]} Nxd7 {[%emt 0:00:02]} 31. Qxd7 {[%emt 0:00:07]} Rad8 {[%emt 0:01:47]} 32. Qxb7 {[%emt 0:00:59]} Rd1 {[%emt 0:00:13]} 33. Qxa7 {[%emt 0:01:00]} Rxf1+ {[%emt 0:00:16]} 0-1

[Event "Denmark Team Championship 2022"]
[Site "Denmark"]
[Date "2022.10.29"]
[Round "1.5"]
[White "Olsen, Filip Boe"]
[Black "Hansen, Soren Bech"]
[Result "1-0"]
[ECO "A80"]
[WhiteElo "2433"]
[BlackElo "2275"]
[Annotator "ChessBase"]
[PlyCount "67"]
[EventDate "2022.10.29"]
[EventType "team-tourn"]
[EventCountry "DEN"]
[SourceTitle "playchess.com"]
[Source "ChessBase"]
[SourceQuality "1"]
[TimeControl "40/5400+30:1800+30"]

1. d4 {[%emt 0:00:05]} f5 {[%emt 0:00:24]} 2. Nf3 {[%emt 0:00:10]} Nf6 {[%emt 0:00:06]} 3. g3 {[%emt 0:00:29]} g6 {[%emt 0:00:07]} 4. Bg2 {[%emt 0:00:12]} Bg7 {[%emt 0:00:07]} 5. O-O {[%emt 0:00:15]} O-O {[%emt 0:00:04]} 6. b3 {[%emt 0:00:39]} d6 {[%emt 0:00:55]} 7. Bb2 {[%emt 0:00:26]} c6 {[%emt 0:02:35]} 8. c4 {[%emt 0:00:44]} Qe8 {[%emt 0:00:56]} 9. Re1 {[%emt 0:01:57]} h6 {[%emt 0:10:02]} 10. Nc3 {[%emt 0:05:06]} Ne4 {[%emt 0:06:41]} 11. Qd3 {[%emt 0:10:14]} Nxc3 {[%emt 0:02:24]} 12. Bxc3 {[%emt 0:01:16]} e5 {[%emt 0:00:46]} 13. e4 {[%emt 0:02:43]} fxe4 {[%emt 0:21:01]} 14. Qxe4 {[%emt 0:01:02]} Bf5 {[%emt 0:00:07]} 15. Qe3 {[%emt 0:01:20]} e4 {[%emt 0:01:28]} 16. Nd2 {[%emt 0:03:51]} d5 {[%emt 0:07:02]} 17. f3 {[%emt 0:02:07]} Qd7 {[%emt 0:19:03]} 18. fxe4 {[%emt 0:05:58]} dxe4 {[%emt 0:00:32]} 19. Nxe4 {[%emt 0:01:50]} Na6 {[%emt 0:00:16]} 20. Nf2 {[%emt 0:06:55]} Rad8 {[%emt 0:02:34]} 21. d5 {[%emt 0:08:25]} c5 {[%emt 0:00:38]} 22. a3 {[%emt 0:07:54]} b6 {[%emt 0:02:15]} 23. Qd2 {[%emt 0:02:52]} Nc7 {[%emt 0:01:20]} 24. g4 {[%emt 0:06:20]} Bxc3 {[%emt 0:06:13]} 25. Qxc3 {[%emt 0:00:03]} Bxg4 {[%emt 0:00:12]} 26. d6 {[%emt 0:02:25]} Rxf2 {[%emt 0:00:46]} 27. Re7 {[%emt 0:09:21]} Rxg2+ {[%emt 0:01:51]} 28. Kxg2 {[%emt 0:00:16]} Qc6+ {[%emt 0:00:40]} 29. Kg1 {[%emt 0:00:15]} Ne8 {[%emt 0:04:19]} 30. Rf1 {[%emt 0:00:35]} Bf5 {[%emt 0:01:01]} 31. Rxf5 {[%emt 0:00:39]} gxf5 {[%emt 0:00:56]} 32. Qg3+ {[%emt 0:00:19]} Kf8 {[%emt 0:01:05]} 33. Qg6 {[%emt 0:00:14]} Nxd6 {[%emt 0:00:35]} 34. Qg7# {[%emt 0:00:08]} 1-0

[Event "Denmark Team Championship 2022"]
[Site "Denmark"]
[Date "2022.10.29"]
[Round "1.5"]
[White "Smith, Axel"]
[Black "Hove, Esben Kjems"]
[Result "0-1"]
[ECO "A11"]
[WhiteElo "2402"]
[BlackElo "2305"]
[Annotator "ChessBase"]
[PlyCount "176"]
[EventDate "2022.10.29"]
[EventType "team-tourn"]
[EventCountry "DEN"]
[SourceTitle "playchess.com"]
[Source "ChessBase"]
[SourceQuality "1"]
[TimeControl "40/5400+30:1800+30"]

1. c4 {[%emt 0:00:01]} c6 {[%emt 0:00:23]} 2. Nf3 {[%emt 0:00:13]} d5 {[%emt 0:00:06]} 3. e3 {[%emt 0:00:03]} Nf6 {[%emt 0:00:16]} 4. Nc3 {[%emt 0:00:02]} e6 {[%emt 0:01:34]} 5. d4 {[%emt 0:00:03]} Be7 {[%emt 0:00:27]} 6. Bd3 {[%emt 0:02:37]} O-O {[%emt 0:00:29]} 7. O-O {[%emt 0:00:35]} Nbd7 {[%emt 0:00:22]} 8. Qe2 {[%emt 0:07:28]} dxc4 {[%emt 0:09:10]} 9. Bxc4 {[%emt 0:00:07]} b5 {[%emt 0:00:24]} 10. Bd3 {[%emt 0:05:25]} b4 {[%emt 0:02:54]} 11. Na4 {[%emt 0:03:14]} Qa5 {[%emt 0:11:36]} 12. b3 {[%emt 0:00:40]} c5 {[%emt 0:07:25]} 13. Bb2 {[%emt 0:06:41]} Bb7 {[%emt 0:01:47]} 14. Nxc5 {[%emt 0:23:17]} Nxc5 {[%emt 0:01:14]} 15. dxc5 {[%emt 0:02:22]} Qxc5 {[%emt 0:00:09]} 16. Rfc1 {[%emt 0:01:21]} Qa5 {[%emt 0:02:20]} 17. Ne5 {[%emt 0:05:05]} Rac8 {[%emt 0:04:02]} 18. Nc4 {[%emt 0:01:57]} Qd5 {[%emt 0:04:17]} 19. f3 {[%emt 0:01:12]} Rfd8 {[%emt 0:01:44]} 20. Bxf6 {[%emt 0:15:01]} Bxf6 {[%emt 0:00:54]} 21. Be4 {[%emt 0:00:04]} Qb5 {[%emt 0:00:45]} 22. Bxb7 {[%emt 0:02:54]} Qxb7 {[%emt 0:00:06]} 23. Rab1 {[%emt 0:00:06]} g6 {[%emt 0:04:08]} 24. Rd1 {[%emt 0:00:34]} Qa6 {[%emt 0:00:37]} 25. Rxd8+ {[%emt 0:04:44]} Rxd8 {[%emt 0:00:12]} 26. Qc2 {[%emt 0:01:04]} Kg7 {[%emt 0:04:03]} 27. Kf2 {[%emt 0:00:55]} Qc8 {[%emt 0:03:35]} 28. Rd1 {[%emt 0:00:42]} Rd5 {[%emt 0:01:06]} 29. Kg1 {[%emt 0:05:24]} Qd8 {[%emt 0:02:18]} 30. Rxd5 {[%emt 0:04:38]} exd5 {[%emt 0:01:36]} 31. Nb2 {[%emt 0:04:12]} Qb6 {[%emt 0:01:45]} 32. Qe2 {[%emt 0:00:52]} d4 {[%emt 0:07:04]} 33. Nc4 {[%emt 0:00:06]} Qc5 {[%emt 0:00:16]} 34. Kf1 {[%emt 0:01:49]} dxe3 {[%emt 0:01:05]} 35. Qxe3 {[%emt 0:00:06]} Bd4 {[%emt 0:00:32]} 36. Qe4 {[%emt 0:01:49]} Bf6 {[%emt 0:05:01]} 37. g3 {[%emt 0:00:41]} Qc8 {[%emt 0:05:10]} 38. Kg2 {[%emt 0:00:06]} Qa6 {[%emt 0:00:17]} 39. Qe2 {[%emt 0:01:04]} h5 {[%emt 0:01:12]} 40. h4 {[%emt 0:00:31]} Bd4 {[%emt 0:02:35]} 41. Qd2 {[%emt 0:02:59]} Bc3 {[%emt 0:04:10]} 42. Qe2 {[%emt 0:01:20]} Qf6 {[%emt 0:01:47]} 43. Qd3 {[%emt 0:05:02]} Qe6 {[%emt 0:16:48]} 44. Ne3 {[%emt 0:04:32]} a5 {[%emt 0:03:23]} 45. Qe4 {[%emt 0:05:22]} Qd6 {[%emt 0:04:26]} 46. Nd5 {[%emt 0:01:33]} Qc5 {[%emt 0:03:41]} 47. f4 {[%emt 0:06:56]} Ba1 {[%emt 0:07:35]} 48. f5 {[%emt 0:01:27]} Qd4 {[%emt 0:03:18]} 49. Qxd4+ {[%emt 0:03:53]} Bxd4 {[%emt 0:00:07]} 50. Kf3 {[%emt 0:01:08]} Be5 {[%emt 0:02:52]} 51. g4 {[%emt 0:00:30]} Kh6 {[%emt 0:01:54]} 52. g5+ {[%emt 0:00:44]} Kg7 {[%emt 0:00:06]} 53. Ne7 {[%emt 0:01:09]} Bd6 {[%emt 0:00:26]} 54. f6+ {[%emt 0:00:25]} Kf8 {[%emt 0:00:07]} 55. Nc6 {[%emt 0:00:16]} Bc7 {[%emt 0:00:10]} 56. Ke4 {[%emt 0:00:35]} Bg3 {[%emt 0:00:52]} 57. Nxa5 {[%emt 0:00:22]} Bxh4 {[%emt 0:00:05]} 58. Kf4 {[%emt 0:00:45]} Be1 {[%emt 0:00:13]} 59. Nc4 {[%emt 0:00:11]} Bc3 {[%emt 0:01:51]} 60. Kg3 {[%emt 0:00:08]} Bd4 {[%emt 0:00:18]} 61. a3 {[%emt 0:01:06]} bxa3 {[%emt 0:00:13]} 62. Nxa3 {[%emt 0:00:01]} Ke8 {[%emt 0:00:13]} 63. Nc4 {[%emt 0:00:41]} Kd7 {[%emt 0:00:09]} 64. Kf4 {[%emt 0:00:30]} Bc3 {[%emt 0:00:32]} 65. Ke4 {[%emt 0:00:35]} Ke6 {[%emt 0:00:19]} 66. Kd3 {[%emt 0:00:28]} Bb4 {[%emt 0:00:18]} 67. Ke4 {[%emt 0:00:03]} h4 {[%emt 0:00:32]} 68. Kf4 {[%emt 0:01:25]} h3 {[%emt 0:01:35]} 69. Kg3 {[%emt 0:00:01]} Kf5 {[%emt 0:00:07]} 70. Ne3+ {[%emt 0:00:16]} Kxg5 {[%emt 0:00:08]} 71. Nd5 {[%emt 0:00:29]} Bd6+ {[%emt 0:00:16]} 72. Kxh3 {[%emt 0:00:02]} Kf5 {[%emt 0:00:10]} 73. Ne3+ {[%emt 0:01:04]} Kxf6 {[%emt 0:00:07]} 74. Kg4 {[%emt 0:00:04]} Ke6 {[%emt 0:00:15]} 75. Nc2 {[%emt 0:00:48]} Ke5 {[%emt 0:00:25]} 76. b4 {[%emt 0:00:58]} Be7 {[%emt 0:00:57]} 77. b5 {[%emt 0:00:04]} f5+ {[%emt 0:00:06]} 78. Kf3 {[%emt 0:00:09]} g5 {[%emt 0:01:36]} 79. b6 {[%emt 0:00:31]} g4+ {[%emt 0:00:07]} 80. Kg3 {[%emt 0:00:24]} Ke4 {[%emt 0:00:08]} 81. b7 {[%emt 0:00:38]} Bd6+ {[%emt 0:00:04]} 82. Kh4 {[%emt 0:01:00]} g3 {[%emt 0:00:54]} 83. Ne1 {[%emt 0:00:24]} Ke3 {[%emt 0:01:19]} 84. Kh3 {[%emt 0:01:07]} Kf2 {[%emt 0:00:58]} 85. Ng2 {[%emt 0:00:37]} f4 {[%emt 0:00:13]} 86. Nh4 {[%emt 0:00:10]} Bb8 {[%emt 0:00:40]} 87. Ng2 {[%emt 0:00:51]} f3 {[%emt 0:00:22]} 88. Nh4 {[%emt 0:00:30]} g2 {[%emt 0:00:21]} 0-1

[Event "Denmark Team Championship 2022"]
[Site "Denmark"]
[Date "2022.10.29"]
[Round "1.5"]
[White "Pilgaard, Kim"]
[Black "Klitgaard, Thomas"]
[Result "1-0"]
[ECO "D35"]
[WhiteElo "2379"]
[BlackElo "2137"]
[Annotator "ChessBase"]
[PlyCount "139"]
[EventDate "2022.10.29"]
[EventType "team-tourn"]
[EventCountry "DEN"]
[SourceTitle "playchess.com"]
[Source "ChessBase"]
[SourceQuality "1"]
[TimeControl "40/5400+30:1800+30"]

1. d4 {[%emt 0:00:24]} e6 {[%emt 0:00:10]} 2. c4 {[%emt 0:00:28]} Nf6 {[%emt 0:00:40]} 3. Nc3 {[%emt 0:00:19]} d5 {[%emt 0:00:08]} 4. cxd5 {[%emt 0:00:33]} exd5 {[%emt 0:00:14]} 5. Bg5 {[%emt 0:00:31]} c6 {[%emt 0:00:40]} 6. e3 {[%emt 0:00:21]} Be7 {[%emt 0:00:30]} 7. Qc2 {[%emt 0:00:42]} O-O {[%emt 0:00:44]} 8. Bd3 {[%emt 0:00:14]} h6 {[%emt 0:00:19]} 9. Bh4 {[%emt 0:01:58]} Re8 {[%emt 0:00:14]} 10. Nf3 {[%emt 0:11:36]} Ne4 {[%emt 0:01:37]} 11. Bxe7 {[%emt 0:00:15]} Qxe7 {[%emt 0:00:15]} 12. O-O {[%emt 0:00:10]} Nd7 {[%emt 0:04:33]} 13. b4 {[%emt 0:06:32]} Ndf6 {[%emt 0:21:23]} 14. Rab1 {[%emt 0:01:56]} a6 {[%emt 0:02:00]} 15. Ne5 {[%emt 0:15:48]} Nd6 {[%emt 0:05:34]} 16. a4 {[%emt 0:01:17]} Nd7 {[%emt 0:03:21]} 17. Nf3 {[%emt 0:01:13]} b5 {[%emt 0:01:17]} 18. Ra1 {[%emt 0:06:59]} Bb7 {[%emt 0:04:34]} 19. Rfb1 {[%emt 0:04:04]} Rab8 {[%emt 0:04:58]} 20. Ne2 {[%emt 0:02:54]} Nb6 {[%emt 0:03:05]} 21. a5 {[%emt 0:01:34]} Nbc4 {[%emt 0:02:20]} 22. Ng3 {[%emt 0:00:20]} Bc8 {[%emt 0:02:11]} 23. h3 {[%emt 0:12:31]} Bd7 {[%emt 0:01:32]} 24. Rb3 {[%emt 0:00:59]} Rf8 {[%emt 0:03:50]} 25. e4 {[%emt 0:01:41]} dxe4 {[%emt 0:01:54]} 26. Nxe4 {[%emt 0:00:09]} Nxe4 {[%emt 0:00:33]} 27. Bxe4 {[%emt 0:00:06]} Rfe8 {[%emt 0:01:36]} 28. Bd3 {[%emt 0:03:15]} Be6 {[%emt 0:00:36]} 29. Re1 {[%emt 0:01:04]} Qd6 {[%emt 0:02:17]} 30. Qc3 {[%emt 0:13:00]} Rbd8 {[%emt 0:07:56]} 31. Rbb1 {[%emt 0:00:28]} Re7 {[%emt 0:03:25]} 32. Bc2 {[%emt 0:01:01]} Bd5 {[%emt 0:01:45]} 33. Ne5 {[%emt 0:01:28]} Rde8 {[%emt 0:04:35]} 34. Qd3 {[%emt 0:04:56]} g6 {[%emt 0:00:38]} 35. f4 {[%emt 0:01:11]} Be6 {[%emt 0:04:48]} 36. Qc3 {[%emt 0:00:19]} Bd5 {[%emt 0:04:10]} 37. Qd3 {[%emt 0:00:27]} Be6 {[%emt 0:00:08]} 38. Qc3 {[%emt 0:00:05]} Bd5 {[%emt 0:00:16]} 39. Rbd1 {[%emt 0:00:00]} Qf6 {[%emt 0:01:36]} 40. Qg3 {[%emt 0:00:41]} Nd6 {[%emt 0:05:36]} 41. Kh2 {[%emt 0:30:51]} Nf5 {[%emt 0:31:27]} 42. Ng4 {[%emt 0:01:42]} Qg7 {[%emt 0:00:00]} 43. Rxe7 {[%emt 0:00:00]} Rxe7 {[%emt 0:00:00]} 44. Bxf5 {[%emt 0:00:00]} Re2 {[%emt 0:00:00]} 45. Bd7 {[%emt 0:00:00]} Rxg2+ {[%emt 0:00:00]} 46. Qxg2 {[%emt 0:00:00]} Bxg2 {[%emt 0:00:00]} 47. Kxg2 {[%emt 0:00:00]} h5 {[%emt 0:00:00]} 48. Ne5 {[%emt 0:00:00]} Qf6 {[%emt 0:00:00]} 49. Bxc6 {[%emt 0:00:00]} Qxf4 {[%emt 0:00:00]} 50. Bd5 {[%emt 0:00:00]} Qe3 {[%emt 0:00:00]} 51. Bxf7+ {[%emt 0:01:16]} Kg7 {[%emt 0:00:00]} 52. Rd3 {[%emt 0:00:05]} Qe2+ {[%emt 0:00:00]} 53. Kg3 {[%emt 0:00:10]} Qe1+ {[%emt 0:00:00]} 54. Kf3 {[%emt 0:01:09]} Qxb4 {[%emt 0:00:00]} 55. Bxg6 {[%emt 0:00:39]} Kf6 {[%emt 0:02:16]} 56. Bxh5 {[%emt 0:00:11]} Qxa5 {[%emt 0:00:47]} 57. Bg4 {[%emt 0:01:25]} Qa1 {[%emt 0:00:51]} 58. Ke4 {[%emt 0:00:53]} Ke7 {[%emt 0:01:59]} 59. Kd5 {[%emt 0:00:49]} Qa2+ {[%emt 0:00:46]} 60. Kc5 {[%emt 0:00:52]} Qc2+ {[%emt 0:00:22]} 61. Kb6 {[%emt 0:00:42]} b4 {[%emt 0:02:48]} 62. Bd1 {[%emt 0:00:10]} Qa2 {[%emt 0:00:32]} 63. Bb3 {[%emt 0:00:19]} Qa1 {[%emt 0:00:19]} 64. Kc5 {[%emt 0:02:26]} Qa5+ {[%emt 0:00:54]} 65. Kc6 {[%emt 0:00:14]} Qb5+ {[%emt 0:00:13]} 66. Kc7 {[%emt 0:00:18]} Qa5+ {[%emt 0:00:47]} 67. Kc8 {[%emt 0:00:09]} Qb6 {[%emt 0:00:11]} 68. Re3 {[%emt 0:01:05]} Qb5 {[%emt 0:00:51]} 69. Nd7+ {[%emt 0:00:57]} Kd6 {[%emt 0:00:15]} 70. Re6# {[%emt 0:00:07]} 1-0